fUSD/lending_fUSD_20250807
["ID","MTS","AMOUNT","RATE_DAILY","PERIOD"]
[377811454,1754562668145,-400.0,0.00020265,2]
[377811455,1754562668155,-520.87,0.00020265,2]
[377811456,1754562668164,-837.42,0.00020265,2]
[377811457,1754562668174,-514.45,0.00020265,2]
[377811458,1754562668183,-400.0,0.00020265,2]
[377811459,1754562668193,-1169.21,0.00020265,2]
[377811460,1754562668202,-400.0,0.00020265,2]
[377811461,1754562668211,-1295.07,0.00020265,2]
[377811462,1754562668220,-1789.44,0.00020265,2]
[377811463,1754562668229,-1151.7,0.00020265,2]
[377811464,1754562668238,-890.01,0.00020265,2]
[377811465,1754562668247,-457.21,0.00020265,2]
[377811466,1754562668257,-400.0,0.00020265,2]
[377811467,1754562668271,-400.0,0.00020265,2]
[377811468,1754562668280,-1549.27,0.00020265,2]
[377811469,1754562668289,-400.0,0.00020265,2]
[377811470,1754562668299,-400.0,0.00020265,2]
[377811471,1754562668308,-400.0,0.00020265,2]
[377811472,1754562668317,-781.38,0.00020265,2]
[377811473,1754562668327,-830.74,0.00020265,2]
[377811474,1754562668335,-151.0,0.00020265,2]
[377811475,1754562668345,-151.0,0.00020265,2]
[377811476,1754562668354,-800.36,0.00020265,2]
[377811477,1754562668364,-1725.29,0.00020265,2]
[377811478,1754562668374,-1007.79,0.00020265,2]
[377811479,1754562668384,-1957.11,0.00020265,2]
[377811480,1754562668393,-400.0,0.00020265,2]
[377811481,1754562668402,-400.0,0.00020265,2]
[377811482,1754562668413,-1225.75,0.00020265,2]
[377811483,1754562668424,-400.0,0.00020265,2]
[377811484,1754562668433,-1809.81,0.00020265,2]
[377811485,1754562668442,-400.0,0.00020265,2]
[377811486,1754562668453,-400.0,0.00020265,2]
[377811487,1754562668462,-1898.23,0.00020265,2]
[377811488,1754562668471,-426.06,0.00020265,2]
[377811489,1754562668481,-1058.79,0.00020265,2]
[377811490,1754562668492,-400.0,0.00020265,2]
[377811491,1754562668501,-1456.65,0.00020265,2]
[377811492,1754562668514,-584.19,0.00020265,2]
[377811493,1754562668524,-534.92,0.00020265,2]
[377811494,1754562668533,-1116.05,0.00020265,2]
[377811495,1754562668542,-400.0,0.00020265,2]
[377811496,1754562668551,-621.6,0.00020265,2]
[377811497,1754562668561,-400.0,0.00020265,2]
[377811498,1754562668570,-402.64026207,0.00020265,2]
[377811499,1754562668579,-400.0,0.00020265,2]
[377811500,1754562668588,-400.41,0.00020265,2]
[377811501,1754562668597,-400.0,0.00020265,2]
[377811502,1754562668607,-1852.95,0.00020265,2]
[377811503,1754562668616,-1809.95,0.00020265,2]
[377811504,1754562668625,-400.0,0.00020265,2]
[377811505,1754562668635,-877.81,0.00020265,2]
[377811506,1754562668644,-400.0,0.00020265,2]
[377811507,1754562668654,-601.99,0.00020265,2]
[377811508,1754562668663,-400.0,0.00020265,2]
[377811509,1754562668673,-1145.62,0.00020265,2]
[377811510,1754562668683,-826.18,0.00020265,2]
[377811511,1754562668692,-400.0,0.00020265,2]
[377811512,1754562668701,-400.0,0.00020265,2]
[377811513,1754562668711,-400.0,0.00020265,2]
[377811514,1754562668721,-593.29,0.00020265,2]
[377811515,1754562668730,-497.24,0.00020265,2]
[377811516,1754562668739,-400.0,0.00020265,2]
[377811517,1754562668748,-400.0,0.00020265,2]
[377811518,1754562668758,-1357.35,0.00020265,2]
[377811519,1754562668773,-562.11,0.00020265,2]
[377811520,1754562668782,-919.49,0.00020265,2]
[377811521,1754562668792,-816.95,0.00020265,2]
[377811522,1754562668802,-400.0,0.00020265,2]
[377811523,1754562668812,-400.0,0.00020265,2]
[377811524,1754562668821,-400.0,0.00020265,2]
[377811525,1754562668831,-849.46,0.00020265,2]
[377811526,1754562668840,-541.77,0.00020265,2]
[377811527,1754562668850,-464.99,0.00020265,2]
[377811528,1754562668860,-1209.6,0.00020265,2]
[377811529,1754562668870,-2188.9,0.00020265,2]
[377811530,1754562668879,-400.0,0.00020265,2]
[377811531,1754562668888,-539.64,0.00020265,2]
[377811532,1754562668897,-400.0,0.00020265,2]
[377811533,1754562668906,-588.51,0.00020265,2]
[377811534,1754562668916,-400.0,0.00020265,2]
[377811535,1754562668925,-1018.09,0.00020265,2]
[377811536,1754562668934,-2086.65,0.00020265,2]
[377811537,1754562668943,-2120.19,0.00020265,2]
[377811538,1754562668952,-400.0,0.00020265,2]
[377811539,1754562668962,-1671.01,0.00020265,2]
[377811540,1754562668971,-1028.18,0.00020265,2]
[377811541,1754562668980,-1591.8,0.00020265,2]
[377811542,1754562668990,-1285.63,0.00020265,2]
[377811543,1754562668999,-400.0,0.00020265,2]
[377811544,1754562669009,-486.36,0.00020265,2]
[377811545,1754562669020,-400.0,0.00020265,2]
[377811546,1754562669029,-400.0,0.00020265,2]
[377811547,1754562669039,-965.85,0.00020265,2]
[377811548,1754562669048,-400.0,0.00020265,2]
[377811549,1754562669057,-452.52867042,0.00020265,2]
[377811550,1754562669066,-400.0,0.00020265,2]
[377811551,1754562669076,-1092.05,0.00020265,2]
[377811552,1754562669084,-786.1,0.00020265,2]
[377811553,1754562669094,-400.0,0.00020265,2]
[377811554,1754562669103,-578.86,0.00020265,2]
[377811555,1754562669113,-2653.87,0.00020265,2]
[377811556,1754562669122,-500.0,0.00020265,2]
[377811557,1754562669132,-500.0,0.00020265,2]
[377811558,1754562669140,-981.28,0.00020265,2]
[377811559,1754562669149,-534.87,0.00020265,2]
[377811560,1754562669159,-575.02,0.00020265,2]
[377811561,1754562669168,-1693.02,0.00020265,2]
[377811562,1754562669177,-151.0,0.00020265,2]
[377811563,1754562669186,-400.0,0.00020265,2]
[377811564,1754562669196,-680.27,0.00020265,2]
[377811565,1754562669205,-1236.28,0.00020265,2]
[377811566,1754562669214,-400.0,0.00020265,2]
[377811567,1754562669223,-1650.0,0.00020265,2]
[377811568,1754562669232,-1895.03,0.00020265,2]
[377811569,1754562669241,-698.5,0.00020265,2]
[377811570,1754562669251,-2664.3,0.00020265,2]
[377811571,1754562669262,-977.72,0.00020265,2]
[377811572,1754562669271,-1496.58,0.00020265,2]
[377811573,1754562669281,-400.0,0.00020265,2]
[377811574,1754562669290,-1721.69,0.00020265,2]
[377811575,1754562669300,-400.0,0.00020265,2]
[377811576,1754562669309,-402.16343829,0.00020265,2]
[377811577,1754562669318,-447.5,0.00020265,2]
[377811578,1754562669328,-1314.75,0.00020265,2]
[377811579,1754562669337,-1531.41,0.00020265,2]
[377811580,1754562669347,-763.88,0.00020265,2]
[377811581,1754562669357,-400.0,0.00020265,2]
[377811582,1754562669366,-400.0,0.00020265,2]
[377811583,1754562669376,-1192.43,0.00020265,2]
[377811584,1754562669385,-1051.27,0.00020265,2]
[377811585,1754562669395,-400.0,0.00020265,2]
[377811586,1754562669405,-983.3,0.00020265,2]
[377811587,1754562669418,-1585.26,0.00020265,2]
[377811588,1754562669427,-1408.31,0.00020265,2]
[377811589,1754562669437,-824.83,0.00020265,2]
[377811590,1754562669447,-3820.16,0.00020265,2]
[377811591,1754562669457,-2317.32,0.00020265,2]
[377811592,1754562669466,-420.44,0.00020265,2]
[377811593,1754562669476,-464.4,0.00020265,2]
[377811594,1754562669486,-400.0,0.00020265,2]
[377811595,1754562669496,-400.0,0.00020265,2]
[377811596,1754562669505,-1300.14,0.00020265,2]
[377811597,1754562669516,-1300.14,0.00020265,2]
[377811598,1754562669526,-1744.04,0.00020265,2]
[377811599,1754562669536,-431.4823908,0.00020265,2]
[377811600,1754562669546,-400.0,0.00020265,2]
[377811601,1754562669555,-1023.83,0.00020265,2]
[377811602,1754562669565,-605.62,0.00020265,2]
[377811603,1754562669575,-400.0,0.00020265,2]
[377811604,1754562669584,-1222.42,0.00020265,2]
[377811605,1754562669594,-2783.05,0.00020265,2]
[377811606,1754562669604,-2783.05,0.00020265,2]
[377811607,1754562669614,-496.29,0.00020265,2]
[377811608,1754562669624,-400.0,0.00020265,2]
[377811609,1754562669634,-400.0,0.00020265,2]
[377811610,1754562669644,-400.0,0.00020265,2]
[377811611,1754562669654,-546.85,0.00020265,2]
[377811612,1754562669663,-400.0,0.00020265,2]
[377811613,1754562669673,-2994.83,0.00020265,2]
[377811614,1754562669683,-500.0,0.00020265,2]
[377811615,1754562669693,-500.0,0.00020265,2]
[377811616,1754562669704,-1536.35,0.00020265,2]
[377811617,1754562669714,-689.33,0.00020265,2]
[377811618,1754562669724,-400.0,0.00020265,2]
[377811619,1754562669734,-400.0,0.00020265,2]
[377811620,1754562669744,-1087.98,0.00020265,2]
[377811621,1754562669753,-408.83,0.00020265,2]
[377811622,1754562669767,-478.04,0.00020265,2]
[377811623,1754562669778,-400.0,0.00020265,2]
[377811624,1754562669788,-1717.52,0.00020265,2]
[377811625,1754562669799,-400.0,0.00020265,2]
[377811626,1754562669809,-1849.25,0.00020265,2]
[377811627,1754562669820,-1369.71,0.00020265,2]
[377811628,1754562669830,-1158.72,0.00020265,2]
[377811629,1754562669841,-2420.52,0.00020265,2]
[377811630,1754562669851,-1010.33,0.00020265,2]
[377811631,1754562669861,-2653.07,0.00020265,2]
[377811632,1754562669871,-400.0,0.00020265,2]
[377811633,1754562669881,-1672.08,0.00020265,2]
[377811634,1754562669891,-401.61204553,0.00020265,2]
[377811635,1754562669901,-745.01,0.00020265,2]
[377811636,1754562669912,-518.84,0.00020265,2]
[377811637,1754562669922,-2973.62,0.00020265,2]
[377811638,1754562669933,-562.66,0.00020265,2]
[377811639,1754562669943,-491.97,0.00020265,2]
[377811640,1754562669953,-400.0,0.00020265,2]
[377811641,1754562669963,-786.67,0.00020265,2]
[377811642,1754562669972,-963.24,0.00020265,2]
[377811643,1754562669983,-1493.62,0.00020265,2]
[377811644,1754562669993,-1892.39,0.00020265,2]
[377811645,1754562670003,-524.51517177,0.00020265,2]
[377811646,1754562670015,-2558.04,0.00020265,2]
[377811647,1754562670025,-400.0,0.00020265,2]
[377811648,1754562670035,-3384.33,0.00020265,2]
[377811649,1754562670045,-400.0,0.00020265,2]
[377811650,1754562670055,-400.0,0.00020265,2]
[377811651,1754562670065,-400.0,0.00020265,2]
[377811652,1754562670085,-743.79,0.00020265,2]
[377811653,1754562670095,-400.0,0.00020265,2]
[377811654,1754562670105,-400.0,0.00020265,2]
[377811655,1754562670115,-1374.46,0.00020265,2]
[377811656,1754562670126,-1541.54,0.00020265,2]
[377811657,1754562670136,-1299.12,0.00020265,2]
[377811658,1754562670146,-400.0,0.00020265,2]
[377811659,1754562670156,-2418.4,0.00020265,2]
[377811660,1754562670166,-400.0,0.00020265,2]
[377811661,1754562670175,-2055.2,0.00020265,2]
[377811662,1754562670185,-400.0,0.00020265,2]
[377811663,1754562670194,-400.0,0.00020265,2]
[377811664,1754562670204,-500.0,0.00020265,2]
[377811665,1754562670213,-500.0,0.00020265,2]
[377811666,1754562670223,-400.0,0.00020265,2]
[377811667,1754562670233,-532.91,0.00020265,2]
[377811668,1754562670244,-1207.74,0.00020265,2]
[377811669,1754562670253,-2067.93,0.00020265,2]
[377811670,1754562670265,-1967.39,0.00020265,2]
[377811671,1754562670275,-400.0,0.00020265,2]
[377811672,1754562670285,-400.0,0.00020265,2]
[377811673,1754562670295,-400.0,0.00020265,2]
[377811674,1754562670304,-400.0,0.00020265,2]
[377811675,1754562670315,-881.2,0.00020265,2]
[377811676,1754562670325,-1705.29,0.00020265,2]
[377811677,1754562670335,-1248.58,0.00020265,2]
[377811678,1754562670345,-861.36,0.00020265,2]
[377811679,1754562670355,-400.0,0.00020265,2]
[377811680,1754562670365,-400.0,0.00020265,2]
[377811681,1754562670375,-1511.08,0.00020265,2]
[377811682,1754562670384,-400.0,0.00020265,2]
[377811683,1754562670394,-464.55,0.00020265,2]
[377811684,1754562670403,-1142.39,0.00020265,2]
[377811685,1754562670415,-498.34,0.00020265,2]
[377811686,1754562670425,-2125.6,0.00020265,2]
[377811687,1754562670436,-1791.89,0.00020265,2]
[377811688,1754562670445,-400.0,0.00020265,2]
[377811689,1754562670455,-709.03,0.00020265,2]
[377811690,1754562670465,-2103.87,0.00020265,2]
[377811691,1754562670475,-658.79,0.00020265,2]
[377811692,1754562670485,-1154.48,0.00020265,2]
[377811693,1754562670494,-400.0,0.00020265,2]
[377811694,1754562670505,-523.29,0.00020265,2]
[377811695,1754562670520,-1789.89,0.00020265,2]
[377811696,1754562670530,-589.01,0.00020265,2]
[377811697,1754562670539,-589.01,0.00020265,2]
[377811698,1754562670549,-400.0,0.00020265,2]
[377811699,1754562670559,-420.3,0.00020265,2]
[377811700,1754562670569,-1071.55,0.00020265,2]
[377811701,1754562670579,-400.0,0.00020265,2]
[377811702,1754562670589,-581.42,0.00020265,2]
[377811703,1754562670598,-581.42,0.00020265,2]
[377811704,1754562670608,-792.81,0.00020265,2]
[377811705,1754562670617,-1791.4,0.00020265,2]
[377811706,1754562670627,-2619.05,0.00020265,2]
[377811707,1754562670637,-385.30865802,0.00020265,2]
[377811708,1754562671771,-700.94134198,0.00020265,2]
[377811709,1754562671782,-400.0,0.00020265,2]
[377811710,1754562671793,-2401.0,0.00020265,2]
[377811711,1754562671803,-400.0,0.00020265,2]
[377811712,1754562671812,-400.0,0.00020265,2]
[377811713,1754562671822,-2443.11,0.00020265,2]
[377811714,1754562671833,-402.36371646,0.00020265,2]
[377811715,1754562671843,-860.75,0.00020265,2]
[377811716,1754562671852,-707.4,0.00020265,2]
[377811717,1754562671863,-400.0,0.00020265,2]
[377811718,1754562671873,-1990.55,0.00020265,2]
[377811719,1754562671882,-615.11,0.00020265,2]
[377811720,1754562671892,-997.56,0.00020265,2]
[377811721,1754562671902,-905.15,0.00020265,2]
[377811722,1754562671912,-609.48,0.00020265,2]
[377811723,1754562671921,-2974.42,0.00020265,2]
[377811724,1754562671930,-1831.39,0.00020265,2]
[377811725,1754562671940,-400.0,0.00020265,2]
[377811726,1754562671949,-401.52926247,0.00020265,2]
[377811727,1754562671961,-1037.11,0.00020265,2]
[377811728,1754562671971,-400.0,0.00020265,2]
[377811729,1754562671980,-400.0,0.00020265,2]
[377811730,1754562671990,-1734.86,0.00020265,2]
[377811731,1754562672000,-385.97416423,0.00020265,2]
[377811732,1754562672010,-853.62,0.00020265,2]
[377811733,1754562672021,-2143.39,0.00020265,2]
[377811734,1754562672031,-2011.62,0.00020265,2]
[377811735,1754562672040,-1027.44,0.00020265,2]
[377811736,1754562672050,-3639.06,0.00020265,2]
[377811737,1754562672060,-400.0,0.00020265,2]
[377811738,1754562672070,-500.0,0.00020265,2]
[377811739,1754562672079,-500.0,0.00020265,2]
[377811740,1754562672089,-2719.39,0.00020265,2]
[377811741,1754562672099,-506.61586848,0.00020265,2]
[377811742,1754562672108,-158.291193,0.00020265,2]
[377811743,1754562672117,-158.291193,0.00020265,2]
[377811744,1754562672128,-158.291193,0.00020265,2]
[377811745,1754562672138,-400.0,0.00020265,2]
[377811746,1754562672148,-400.0,0.00020265,2]
[377811747,1754562672158,-1900.95,0.00020265,2]
[377811748,1754562672168,-887.89,0.00020265,2]
[377811749,1754562672178,-158.291193,0.00020265,2]
[377811750,1754562672188,-158.291193,0.00020265,2]
[377811751,1754562672198,-158.291201,0.00020265,2]
[377811752,1754562672208,-2506.82,0.00020265,2]
[377811753,1754562672218,-400.0,0.00020265,2]
[377811754,1754562672228,-645.16,0.00020265,2]
[377811755,1754562672237,-572.5,0.00020265,2]
[377811756,1754562672247,-400.0,0.00020265,2]
[377811757,1754562672256,-400.0,0.00020265,2]
[377811758,1754562672267,-1775.97,0.00020265,2]
[377811759,1754562672277,-404.94,0.00020265,2]
[377811760,1754562672286,-400.0,0.00020265,2]
[377811761,1754562672296,-465.50699241,0.00020265,2]
[377811762,1754562672305,-730.56,0.00020265,2]
[377811763,1754562672314,-2738.57,0.00020265,2]
[377811764,1754562672324,-400.0,0.00020265,2]
[377811765,1754562672333,-400.93196129,0.00020265,2]
[377811766,1754562672342,-188.29946,0.00020265,2]
[377811767,1754562672352,-400.0,0.00020265,2]
[377811768,1754562672361,-1776.74,0.00020265,2]
[377811769,1754562672371,-400.0,0.00020265,2]
[377811770,1754562672380,-3310.3,0.00020265,2]
[377811771,1754562672389,-400.0,0.00020265,2]
[377811772,1754562672399,-1819.13,0.00020265,2]
[377811773,1754562672408,-400.0,0.00020265,2]
[377811774,1754562672421,-2760.46,0.00020265,2]
[377811775,1754562672431,-1857.22,0.00020265,2]
[377811776,1754562672440,-1054.59,0.00020265,2]
[377811777,1754562672450,-402.65086822,0.00020265,2]
[377811778,1754562672460,-559.24,0.00020265,2]
[377811779,1754562672470,-512.73,0.00020265,2]
[377811780,1754562672480,-402.99684583,0.00020265,2]
[377811781,1754562672489,-509.06,0.00020265,2]
[377811782,1754562672500,-1995.45,0.00020265,2]
[377811783,1754562672514,-551.74,0.00020265,2]
[377811784,1754562672524,-400.0,0.00020265,2]
[377811785,1754562672534,-917.07,0.00020265,2]
[377811786,1754562672545,-1828.42,0.00020265,2]
[377811787,1754562672555,-400.0,0.00020265,2]
[377811788,1754562672566,-3213.66,0.00020265,2]
[377811789,1754562672577,-400.0,0.00020265,2]
[377811790,1754562672589,-646.25,0.00020265,2]
[377811791,1754562672600,-767.38,0.00020265,2]
[377811792,1754562672611,-1511.84,0.00020265,2]
[377811793,1754562672622,-680.61,0.00020265,2]
[377811794,1754562672633,-400.0,0.00020265,2]
[377811795,1754562672643,-1708.08,0.00020265,2]
[377811796,1754562672653,-400.0,0.00020265,2]
[377811797,1754562672662,-400.0,0.00020265,2]
[377811798,1754562672673,-422.33,0.00020265,2]
[377811799,1754562672683,-3245.61,0.00020265,2]
[377811800,1754562672692,-2196.49,0.00020265,2]
[377811801,1754562672703,-400.0,0.00020265,2]
[377811802,1754562672713,-1755.55,0.00020265,2]
[377811803,1754562672722,-638.55,0.00020265,2]
[377811804,1754562672732,-2929.76,0.00020265,2]
[377811805,1754562672742,-400.0,0.00020265,2]
[377811806,1754562672751,-3093.96,0.00020265,2]
[377811807,1754562672765,-2287.91,0.00020265,2]
[377811808,1754562672778,-400.81948548,0.00020265,2]
[377811809,1754562672788,-401.12180074,0.00020265,2]
[377811810,1754562672798,-2107.68,0.00020265,2]
[377811811,1754562672808,-3776.45,0.00020265,2]
[377811812,1754562672818,-1897.67244672,0.00020265,2]
[377811813,1754562672847,-400.0,0.00019989,2]
[377811814,1754562672856,-703.60755328,0.00020265,2]
[377811815,1754562672866,-400.0,0.00020265,2]
[377811816,1754562672876,-579.41,0.00020265,2]
[377811817,1754562672885,-1703.9011039,0.00020265,2]
[377811818,1754562672900,-10.6888961,0.00020265,2]
[377811819,1754562672910,-1100.11,0.00020265,2]
[377811820,1754562672920,-2179.64,0.00020265,2]
[377811821,1754562672929,-899.34,0.00020265,2]
[377811822,1754562672939,-1289.75,0.00020265,2]
[377811823,1754562672949,-400.0,0.00020265,2]
[377811824,1754562672958,-3306.58,0.00020265,2]
[377811825,1754562672968,-5094.2,0.00020265,2]
[377811826,1754562672978,-2194.6,0.00020265,2]
[377811827,1754562672987,-400.0,0.00020265,2]
[377811828,1754562672997,-183.128408,0.00020265,2]
[377811829,1754562673007,-183.128408,0.00020265,2]
[377811830,1754562673021,-183.128408,0.00020265,2]
[377811831,1754562673031,-3274.83,0.00020265,2]
[377811832,1754562673040,-400.0,0.00020265,2]
[377811833,1754562673051,-408.70397714,0.00020265,2]
[377811834,1754562673061,-183.128408,0.00020265,2]
[377811835,1754562673070,-183.128408,0.00020265,2]
[377811836,1754562673080,-183.128408,0.00020265,2]
[377811837,1754562673090,-734.43,0.00020265,2]
[377811838,1754562673099,-400.0,0.00020265,2]
[377811839,1754562673109,-400.0,0.00020265,2]
[377811840,1754562673118,-843.58,0.00020265,2]
[377811841,1754562673128,-400.0,0.00020265,2]
[377811842,1754562673137,-1367.75,0.00020265,2]
[377811843,1754562673147,-2762.41,0.00020265,2]
[377811844,1754562673157,-604.18,0.00020265,2]
[377811845,1754562673166,-604.18,0.00020265,2]
[377811846,1754562673176,-400.0,0.00020266,2]
[377811847,1754562673185,-400.0,0.00020266,2]
[377811848,1754562673195,-400.0,0.00020266,2]
[377811849,1754562673205,-400.0,0.00020266,2]
[377811850,1754562673215,-524.72,0.00020266,2]
[377811851,1754562673224,-500.0,0.00020266,2]
[377811852,1754562673234,-500.0,0.00020266,2]
[377811853,1754562673243,-500.0,0.00020266,2]
[377811854,1754562673254,-400.0,0.00020266,2]
[377811855,1754562673266,-400.0,0.00020266,2]
[377811856,1754562673275,-400.0,0.00020266,2]
[377811857,1754562673284,-1336.36,0.00020266,2]
[377811858,1754562673294,-151.0,0.00020266,2]
[377811859,1754562673303,-151.0,0.00020266,2]
[377811860,1754562673313,-151.0,0.00020266,2]
[377811861,1754562673323,-151.0,0.00020266,2]
[377811862,1754562673333,-500.0,0.00020266,2]
[377811863,1754562673343,-400.0,0.00020266,2]
[377811864,1754562673353,-400.0,0.00020266,2]
[377811865,1754562673362,-500.0,0.00020266,2]
[377811866,1754562673371,-400.0,0.00020266,2]
[377811867,1754562673381,-610.6,0.00020266,2]
[377811868,1754562673391,-678.62,0.00020266,2]
[377811869,1754562673401,-254.868075,0.00020266,2]
[377811870,1754562673411,-400.0,0.00020266,2]
[377811871,1754562673422,-400.0,0.00020266,2]
[377811872,1754562673436,-400.0,0.00020266,2]
[377811873,1754562673449,-403.94365306,0.00020266,2]
[377811874,1754562673459,-400.0,0.00020266,2]
[377811875,1754562673469,-610.56,0.00020266,2]
[377811876,1754562673479,-400.0,0.00020266,2]
[377811877,1754562673488,-400.0,0.00020266,2]
[377811878,1754562673498,-622.52,0.00020266,2]
[377811879,1754562673510,-400.0,0.00020266,2]
[377811880,1754562673523,-400.0,0.00020266,2]
[377811881,1754562673532,-1774.33,0.00020266,2]
[377811882,1754562673542,-400.0,0.00020266,2]
[377811883,1754562673551,-402.79528691,0.00020266,2]
[377811884,1754562673700,-400.0,0.00020266,2]
[377811885,1754562673711,-400.0,0.00020266,2]
[377811886,1754562673720,-880.64,0.00020266,2]
[377811887,1754562673729,-650.98,0.00020266,2]
[377811888,1754562673739,-400.0,0.00020266,2]
[377811889,1754562673748,-400.0,0.00020266,2]
[377811890,1754562673758,-1747.49,0.00020266,2]
[377811891,1754562673771,-1249.49,0.00020266,2]
[377811892,1754562673780,-400.0,0.00020266,2]
[377811893,1754562673790,-400.0,0.00020266,2]
[377811894,1754562673800,-276.89875402,0.00020266,7]
[377811895,1754562673810,-791.22,0.00020266,2]
[377811896,1754562673819,-400.0,0.00020266,2]
[377811897,1754562673828,-400.0,0.00020266,2]
[377811898,1754562673837,-1656.79,0.00020266,2]
[377811899,1754562673847,-400.0,0.00020266,2]
[377811900,1754562673856,-1297.24,0.00020266,2]
[377811901,1754562673865,-1165.96,0.00020266,2]
[377811902,1754562673875,-1913.24,0.00020266,2]
[377811903,1754562673884,-429.98,0.00020266,2]
[377811904,1754562673894,-858.04,0.00020266,2]
[377811905,1754562673903,-1689.52,0.00020266,2]
[377811906,1754562673913,-400.0,0.00020266,2]
[377811907,1754562673922,-400.0,0.00020266,2]
[377811908,1754562673932,-1877.21,0.00020266,2]
[377811909,1754562673941,-1122.97,0.00020266,2]
[377811910,1754562673950,-400.0,0.00020266,2]
[377811911,1754562673960,-402.19933065,0.00020266,2]
[377811912,1754562673969,-400.0,0.00020266,2]
[377811913,1754562673978,-400.0,0.00020266,2]
[377811914,1754562673988,-487.01,0.00020266,2]
[377811915,1754562673997,-400.0,0.00020266,2]
[377811916,1754562674006,-402.30470936,0.00020266,2]
[377811917,1754562674018,-400.0,0.00020266,2]
[377811918,1754562674028,-400.0,0.00020266,2]
[377811919,1754562674038,-400.0,0.00020266,2]
[377811920,1754562674046,-1125.03,0.00020266,2]
[377811921,1754562674056,-1063.58,0.00020266,2]
[377811922,1754562674065,-400.0,0.00020266,2]
[377811923,1754562674075,-400.0,0.00020266,2]
[377811924,1754562674085,-400.0,0.00020266,2]
[377811925,1754562674094,-400.0,0.00020266,2]
[377811926,1754562674103,-400.0,0.00020266,2]
[377811927,1754562674113,-400.0,0.00020266,2]
[377811928,1754562674123,-196.51616894,0.00020266,2]
[377811929,1754562674133,-402.10881613,0.00020266,2]
[377811930,1754562674142,-1700.55,0.00020266,2]
[377811931,1754562674151,-400.0,0.00020266,2]
[377811932,1754562674160,-400.0,0.00020266,2]
[377811933,1754562674170,-400.0,0.00020266,2]
[377811934,1754562674179,-400.0,0.00020266,2]
[377811935,1754562674189,-400.0,0.00020266,2]
[377811936,1754562674198,-400.0,0.00020266,2]
[377811937,1754562674207,-400.0,0.00020266,2]
[377811938,1754562674217,-443.06,0.00020266,2]
[377811939,1754562674227,-400.0,0.00020266,2]
[377811940,1754562674236,-400.0,0.00020266,2]
[377811941,1754562674245,-401.1556917,0.00020266,2]
[377811942,1754562674255,-405.62117659,0.00020266,2]
[377811943,1754562674265,-1851.01,0.00020266,2]
[377811944,1754562674274,-400.0,0.00020266,2]
[377811945,1754562674283,-400.0,0.00020266,2]
[377811946,1754562674293,-1776.45,0.00020266,2]
[377811947,1754562674302,-401.94721187,0.00020266,2]
[377811948,1754562674311,-400.0,0.00020266,2]
[377811949,1754562674320,-400.0,0.00020266,2]
[377811950,1754562674330,-400.0,0.00020266,2]
[377811951,1754562674340,-401.95962715,0.00020266,2]
[377811952,1754562674349,-400.0,0.00020266,2]
[377811953,1754562674359,-2065.49,0.00020266,2]